[Event "Chinese Championship-B Women 2024"]
[Site "Liaocheng"]
[Date "2024.04.24"]
[Round "8.1"]
[White "Wang, Chuqiao"]
[Black "Zhou, Shumeng"]
[Result "1/2-1/2"]
[WhiteElo "2302"]
[BlackElo "1800"]
[PlyCount "107"]
[EventDate "2024.04.24"]
[EventType "swiss"]
[EventCountry "CHN"]
[TimeControl "5400+30"]

1. d4 {[%emt 0:00:03]} d5 {[%emt 0:00:05]} 2. c4 {[%emt 0:00:06]} e6 {[%emt 0:00:04]} 3. Nc3 {[%emt 0:00:04]} Nf6 {[%emt 0:00:05]} 4. cxd5 {[%emt 0:00:04]} exd5 {[%emt 0:00:04]} 5. Bg5 {[%emt 0:00:04]} c6 {[%emt 0:00:06]} 6. e3 {[%emt 0:00:04]} Be7 {[%emt 0:00:05]} 7. Bd3 {[%emt 0:00:04]} h6 {[%emt 0:00:30]} 8. Bf4 {[%emt 0:00:03]} O-O {[%emt 0:00:06]} 9. Nge2 {[%emt 0:00:36]} Re8 {[%emt 0:03:58]} 10. O-O {[%emt 0:00:25]} Nbd7 {[%emt 0:01:23]} 11. Rb1 {[%emt 0:01:44]} a5 {[%emt 0:03:10]} 12. Qc2 {[%emt 0:00:40]} Nh5 {[%emt 0:03:39]} 13. Nxd5 {[%emt 0:00:54]} Nxf4 {[%emt 0:01:38]} 14. Nxe7+ {[%emt 0:00:39]} Qxe7 {[%emt 0:00:09]} 15. Nxf4 {[%emt 0:00:04]} Nf8 {[%emt 0:05:36]} 16. Rbc1 {[%emt 0:02:13]} Ne6 {[%emt 0:04:17]} 17. Nxe6 {[%emt 0:00:29]} Bxe6 {[%emt 0:00:02]} 18. a3 {[%emt 0:00:41]} Red8 {[%emt 0:03:29]} 19. Qc5 {[%emt 0:00:57]} Qf6 {[%emt 0:00:26]} 20. Qb6 {[%emt 0:00:44]} Rd7 {[%emt 0:05:58]} 21. Rc5 {[%emt 0:01:45]} a4 {[%emt 0:01:34]} 22. Ra5 {[%emt 0:01:35]} Rxa5 {[%emt 0:00:06]} 23. Qxa5 {[%emt 0:00:02]} Bb3 {[%emt 0:01:49]} 24. Rc1 {[%emt 0:02:43]} Qe7 {[%emt 0:05:16]} 25. Qc5 {[%emt 0:03:48]} Qd8 {[%emt 0:04:12]} 26. Qb4 {[%emt 0:00:34]} g6 {[%emt 0:09:33]} 27. Bc4 {[%emt 0:04:26]} c5 {[%emt 0:05:34]} 28. dxc5 {[%emt 0:02:36]} Bxc4 {[%emt 0:00:12]} 29. Qxc4 {[%emt 0:00:10]} Rd1+ {[%emt 0:00:02]} 30. Rxd1 {[%emt 0:00:04]} Qxd1+ {[%emt 0:00:04]} 31. Qf1 {[%emt 0:00:01]} Qc2 {[%emt 0:00:17]} 32. Qa1 {[%emt 0:00:25]} Qxc5 {[%emt 0:00:29]} 33. Qd1 {[%emt 0:00:24]} b5 {[%emt 0:04:41]} 34. h3 {[%emt 0:01:01]} h5 {[%emt 0:04:35]} 35. Qd8+ {[%emt 0:01:56]} Kh7 {[%emt 0:00:07]} 36. Qd4 {[%emt 0:00:15]} Qc6 {[%emt 0:05:32]} 37. Kh2 {[%emt 0:00:29]} Kg8 {[%emt 0:01:14]} 38. f4 {[%emt 0:00:21]} f5 {[%emt 0:05:53]} 39. Kg3 {[%emt 0:01:25]} Kf7 {[%emt 0:01:25]} 40. Kf2 {[%emt 0:03:10]} Kg8 {[%emt 0:03:27]} 41. Qd1 {[%emt 0:04:20]} Kf7 {[%emt 0:02:56]} 42. b3 {[%emt 0:00:48]} axb3 {[%emt 0:01:59]} 43. Qxb3+ {[%emt 0:00:01]} Kg7 {[%emt 0:00:24]} 44. Qb2+ {[%emt 0:01:23]} Kf7 {[%emt 0:00:13]} 45. Kg3 {[%emt 0:00:09]} Qd5 {[%emt 0:00:55]} 46. Qe5 {[%emt 0:02:50]} h4+ {[%emt 0:03:39]} 47. Kxh4 {[%emt 0:02:17]} Qxg2 {[%emt 0:00:02]} 48. Qc7+ {[%emt 0:00:18]} Kf6 {[%emt 0:00:34]} 49. Qd8+ {[%emt 0:00:24]} Kf7 {[%emt 0:00:03]} 50. Qc7+ {[%emt 0:00:47]} Kf6 {[%emt 0:00:15]} 51. Qc3+ {[%emt 0:00:45]} Kf7 {[%emt 0:00:22]} 52. Qe1 {[%emt 0:00:59]} Qb2 {[%emt 0:05:13]} 53. Kg3 {[%emt 0:10:41]} Qxa3 {[%emt 0:00:16]} 54. Qd2 {[%emt 0:00:02]} 1/2-1/2

[Event "Chinese Championship-B Women 2024"]
[Site "Liaocheng"]
[Date "2024.04.24"]
[Round "8.2"]
[White "Yang, Yijing"]
[Black "Jiang, Tianyu"]
[Result "1/2-1/2"]
[WhiteElo "2040"]
[BlackElo "1929"]
[PlyCount "60"]
[EventDate "2024.04.24"]
[EventType "swiss"]
[EventCountry "CHN"]
[TimeControl "5400+30"]

1. Nf3 {[%emt 0:02:28]} Nf6 {[%emt 0:00:15]} 2. c4 {[%emt 0:00:12]} e6 {[%emt 0:00:15]} 3. Nc3 {[%emt 0:06:42]} d5 {[%emt 0:00:47]} 4. cxd5 {[%emt 0:03:44]} exd5 {[%emt 0:00:52]} 5. d4 {[%emt 0:00:08]} c6 {[%emt 0:00:34]} 6. Qc2 {[%emt 0:00:56]} g6 {[%emt 0:05:48]} 7. Bg5 {[%emt 0:00:24]} Be7 {[%emt 0:01:11]} 8. e3 {[%emt 0:02:04]} Bf5 {[%emt 0:01:19]} 9. Bd3 {[%emt 0:00:52]} Bxd3 {[%emt 0:01:29]} 10. Qxd3 {[%emt 0:00:08]} Nbd7 {[%emt 0:02:38]} 11. O-O {[%emt 0:01:23]} O-O {[%emt 0:00:59]} 12. Rab1 {[%emt 0:11:50]} a5 {[%emt 0:05:20]} 13. Qc2 {[%emt 0:00:46]} Re8 {[%emt 0:05:46]} 14. Ne1 {[%emt 0:10:18]} Ne4 {[%emt 0:16:53]} 15. Bxe7 {[%emt 0:00:13]} Qxe7 {[%emt 0:00:23]} 16. Nd3 {[%emt 0:00:19]} Nb6 {[%emt 0:16:28]} 17. Nxe4 {[%emt 0:03:29]} Qxe4 {[%emt 0:05:11]} 18. Rbc1 {[%emt 0:02:53]} Nc4 {[%emt 0:03:09]} 19. b3 {[%emt 0:02:22]} Nd6 {[%emt 0:01:14]} 20. Nc5 {[%emt 0:02:46]} Qxc2 21. Rxc2 {[%emt 0:00:04]} Re7 {[%emt 0:09:34]} 22. h4 {[%emt 0:01:41]} Kg7 {[%emt 0:01:43]} 23. g3 {[%emt 0:00:14]} Kf8 {[%emt 0:03:52]} 24. Kg2 {[%emt 0:02:00]} Kg7 {[%emt 0:00:11]} 25. Kf3 {[%emt 0:00:56]} Kf8 {[%emt 0:01:55]} 26. Kg2 {[%emt 0:00:08]} Kg7 {[%emt 0:08:21]} 27. Kf3 {[%emt 0:00:06]} Kf8 {[%emt 0:00:43]} 28. Kg2 {[%emt 0:00:05]} Kg7 {[%emt 0:00:32]} 29. Kf3 {[%emt 0:00:05]} Kf8 {[%emt 0:00:14]} 30. Kg2 {[%emt 0:00:04]} Kg7 {[%emt 0:00:05]} 1/2-1/2

[Event "Chinese Championship-B Women 2024"]
[Site "Liaocheng"]
[Date "2024.04.24"]
[Round "8.3"]
[White "Zhao, Yunqing"]
[Black "Sun, Jihan"]
[Result "1-0"]
[WhiteElo "1965"]
[BlackElo "1781"]
[PlyCount "51"]
[EventDate "2024.04.24"]
[EventType "swiss"]
[EventCountry "CHN"]
[TimeControl "5400+30"]

1. d4 {[%emt 0:01:24]} d5 {[%emt 0:00:06]} 2. Nf3 {[%emt 0:00:38]} Nf6 {[%emt 0:00:29]} 3. g3 {[%emt 0:00:33]} Bf5 {[%emt 0:00:24]} 4. Bg2 {[%emt 0:00:34]} c6 {[%emt 0:01:05]} 5. c4 {[%emt 0:01:33]} e6 {[%emt 0:00:14]} 6. O-O {[%emt 0:00:49]} Nbd7 {[%emt 0:00:11]} 7. Nc3 {[%emt 0:00:35]} h6 {[%emt 0:00:05]} 8. Nd2 {[%emt 0:02:00]} Be7 {[%emt 0:00:44]} 9. e4 {[%emt 0:01:13]} dxe4 {[%emt 0:00:11]} 10. Ndxe4 {[%emt 0:00:10]} Nxe4 {[%emt 0:00:08]} 11. Nxe4 {[%emt 0:00:08]} Nf6 {[%emt 0:01:03]} 12. Nxf6+ {[%emt 0:05:20]} Bxf6 {[%emt 0:00:18]} 13. Be3 {[%emt 0:00:35]} O-O {[%emt 0:00:55]} 14. Rc1 {[%emt 0:01:55]} Qe7 {[%emt 0:13:59]} 15. Qe2 {[%emt 0:06:18]} Rfd8 {[%emt 0:01:06]} 16. Rfd1 {[%emt 0:01:29]} a5 {[%emt 0:08:36]} 17. c5 {[%emt 0:20:42]} Rd7 {[%emt 0:18:19]} 18. Qc4 {[%emt 0:09:59]} Rad8 {[%emt 0:01:19]} 19. Rd2 {[%emt 0:04:01]} e5 {[%emt 0:25:00]} 20. d5 {[%emt 0:01:44]} cxd5 {[%emt 0:04:27]} 21. Rxd5 {[%emt 0:04:17]} Bd3 {[%emt 0:02:47]} 22. Qxd3 {[%emt 0:01:44]} Rxd5 {[%emt 0:05:06]} 23. Bxd5 {[%emt 0:00:16]} Qd7 {[%emt 0:05:02]} 24. Rd1 {[%emt 0:00:25]} Qa4 {[%emt 0:01:24]} 25. Qb3 {[%emt 0:00:56]} Qd7 {[%emt 0:01:33]} 26. Bf3 {[%emt 0:00:29]} 1-0

[Event "Chinese Championship-B Women 2024"]
[Site "Liaocheng"]
[Date "2024.04.24"]
[Round "8.4"]
[White "Chu, Ruotong"]
[Black "Shao, Qiyu"]
[Result "0-1"]
[WhiteElo "2124"]
[BlackElo "1764"]
[PlyCount "82"]
[EventDate "2024.04.24"]
[EventType "swiss"]
[EventCountry "CHN"]
[TimeControl "5400+30"]

1. d4 {[%emt 0:07:16]} Nf6 {[%emt 0:00:05]} 2. c4 {[%emt 0:00:13]} e6 {[%emt 0:00:04]} 3. g3 {[%emt 0:00:29]} d5 {[%emt 0:00:24]} 4. Bg2 {[%emt 0:01:05]} Be7 {[%emt 0:02:47]} 5. Nf3 {[%emt 0:00:16]} O-O {[%emt 0:00:28]} 6. Qc2 {[%emt 0:00:32]} b6 {[%emt 0:01:10]} 7. O-O {[%emt 0:01:25]} Bb7 {[%emt 0:01:20]} 8. cxd5 {[%emt 0:00:13]} exd5 {[%emt 0:00:14]} 9. Nc3 {[%emt 0:05:59]} c5 {[%emt 0:02:28]} 10. dxc5 {[%emt 0:02:25]} bxc5 {[%emt 0:00:03]} 11. Nh4 {[%emt 0:01:35]} Nc6 {[%emt 0:08:34]} 12. Nf5 {[%emt 0:03:53]} Re8 {[%emt 0:14:44]} 13. Qb3 {[%emt 0:09:00]} Na5 {[%emt 0:03:19]} 14. Qb5 {[%emt 0:00:25]} Bf8 {[%emt 0:02:25]} 15. Bg5 {[%emt 0:02:02]} a6 {[%emt 0:05:42]} 16. Qd3 {[%emt 0:09:59]} d4 {[%emt 0:02:58]} 17. Bxb7 {[%emt 0:09:55]} Nxb7 {[%emt 0:00:04]} 18. Na4 {[%emt 0:00:11]} h6 {[%emt 0:06:53]} 19. Bd2 {[%emt 0:03:37]} Ne4 {[%emt 0:02:33]} 20. Nh4 {[%emt 0:03:15]} c4 {[%emt 0:04:40]} 21. Qc2 {[%emt 0:00:02]} Rc8 {[%emt 0:01:45]} 22. Rad1 {[%emt 0:05:26]} Nbd6 {[%emt 0:05:45]} 23. Be1 {[%emt 0:15:34]} Nb5 {[%emt 0:01:26]} 24. Nc3 {[%emt 0:05:06]} Ng5 {[%emt 0:00:49]} 25. a4 {[%emt 0:06:25]} Nxc3 {[%emt 0:02:39]} 26. bxc3 {[%emt 0:00:55]} d3 {[%emt 0:01:29]} 27. exd3 {[%emt 0:00:15]} Qd5 {[%emt 0:00:14]} 28. f3 {[%emt 0:01:14]} Re3 {[%emt 0:01:19]} 29. dxc4 {[%emt 0:02:32]} Qxc4 {[%emt 0:00:17]} 30. Qf5 {[%emt 0:01:08]} Rce8 {[%emt 0:01:13]} 31. Ng2 {[%emt 0:01:49]} R3e5 {[%emt 0:00:12]} 32. Qd3 {[%emt 0:01:16]} Nh3+ {[%emt 0:01:30]} 33. Kh1 {[%emt 0:00:03]} Qxa4 {[%emt 0:00:29]} 34. Bf2 {[%emt 0:01:02]} Re2 {[%emt 0:00:33]} 35. Rd2 {[%emt 0:00:50]} Nxf2+ {[%emt 0:06:22]} 36. Rxf2 {[%emt 0:00:01]} Qa1+ {[%emt 0:00:42]} 37. Rd1 {[%emt 0:00:02]} Qa2 {[%emt 0:00:37]} 38. Rd2 {[%emt 0:01:33]} Rxf2 {[%emt 0:02:52]} 39. Rxa2 {[%emt 0:00:08]} Rxa2 {[%emt 0:00:03]} 40. Ne3 {[%emt 0:00:33]} Rf2 {[%emt 0:01:20]} 41. Nc2 {[%emt 0:00:49]} Ree2 {[%emt 0:00:10]} 0-1

[Event "Chinese Championship-B Women 2024"]
[Site "Liaocheng"]
[Date "2024.04.24"]
[Round "8.5"]
[White "Guo, Hanxi"]
[Black "Du, Yuxin"]
[Result "1/2-1/2"]
[WhiteElo "1699"]
[BlackElo "1960"]
[PlyCount "61"]
[EventDate "2024.04.24"]
[EventType "swiss"]
[EventCountry "CHN"]
[TimeControl "5400+30"]

1. e4 {[%emt 0:00:24]} c6 {[%emt 0:00:07]} 2. d4 {[%emt 0:00:05]} d5 {[%emt 0:00:05]} 3. exd5 {[%emt 0:00:04]} cxd5 {[%emt 0:00:04]} 4. c4 {[%emt 0:00:04]} e6 {[%emt 0:00:22]} 5. Nc3 {[%emt 0:00:18]} Nf6 {[%emt 0:00:09]} 6. Nf3 {[%emt 0:00:06]} Be7 {[%emt 0:00:23]} 7. c5 {[%emt 0:00:08]} Ne4 {[%emt 0:03:03]} 8. Bd3 {[%emt 0:01:33]} f5 {[%emt 0:05:26]} 9. Ne5 {[%emt 0:01:17]} O-O {[%emt 0:00:29]} 10. f3 {[%emt 0:05:20]} Nxc3 {[%emt 0:04:11]} 11. bxc3 {[%emt 0:00:09]} Nd7 {[%emt 0:00:45]} 12. Nxd7 {[%emt 0:02:14]} Bxd7 {[%emt 0:00:13]} 13. Rb1 {[%emt 0:03:43]} b6 {[%emt 0:02:46]} 14. cxb6 {[%emt 0:01:04]} axb6 {[%emt 0:00:05]} 15. Qb3 {[%emt 0:00:21]} Bd6 {[%emt 0:12:10]} 16. O-O {[%emt 0:02:07]} Qc7 {[%emt 0:11:31]} 17. f4 {[%emt 0:00:52]} Rfc8 {[%emt 0:01:53]} 18. Bd2 {[%emt 0:02:04]} Ra3 {[%emt 0:14:24]} 19. Qxb6 {[%emt 1:18:07]} Rxa2 {[%emt 0:03:23]} 20. Qxc7 {[%emt 0:00:00]} Rxc7 {[%emt 0:00:10]} 21. Be1 {[%emt 0:00:00]} h6 {[%emt 0:16:21]} 22. g3 {[%emt 0:00:00]} g5 {[%emt 0:01:07]} 23. fxg5 {[%emt 0:00:00]} hxg5 {[%emt 0:00:06]} 24. Rf2 {[%emt 0:00:00]} Rxf2 {[%emt 0:00:32]} 25. Kxf2 {[%emt 0:00:00]} Kf7 {[%emt 0:13:43]} 26. Bd2 {[%emt 0:00:00]} Be7 {[%emt 0:00:43]} 27. Ke2 {[%emt 0:00:00]} Bf6 {[%emt 0:00:54]} 28. h3 {[%emt 0:00:00]} Be8 {[%emt 0:05:29]} 29. g4 {[%emt 0:00:00]} Bd7 {[%emt 0:01:57]} 30. Rf1 {[%emt 0:00:00]} Kg6 {[%emt 0:00:10]} 31. Rg1 {[%emt 0:00:00]} 1/2-1/2

[Event "Chinese Championship-B Women 2024"]
[Site "Liaocheng"]
[Date "2024.04.24"]
[Round "8.6"]
[White "Zhu, Zile"]
[Black "Hu, Yu A."]
[Result "0-1"]
[WhiteElo "1819"]
[BlackElo "2148"]
[PlyCount "74"]
[EventDate "2024.04.24"]
[EventType "swiss"]
[EventCountry "CHN"]
[TimeControl "5400+30"]

1. d4 {[%emt 0:02:31]} Nf6 {[%emt 0:06:58]} 2. Nf3 {[%emt 0:00:04]} b6 {[%emt 0:00:24]} 3. e3 {[%emt 0:00:08]} Bb7 {[%emt 0:00:07]} 4. Nbd2 {[%emt 0:00:06]} e6 {[%emt 0:00:32]} 5. c4 {[%emt 0:00:16]} c5 {[%emt 0:00:42]} 6. Be2 {[%emt 0:00:14]} Nc6 {[%emt 0:01:09]} 7. O-O {[%emt 0:00:16]} d5 {[%emt 0:00:49]} 8. b3 {[%emt 0:00:20]} Bd6 {[%emt 0:00:57]} 9. Bb2 {[%emt 0:00:11]} O-O {[%emt 0:01:08]} 10. Ne5 {[%emt 0:04:44]} Qe7 {[%emt 0:01:32]} 11. f4 {[%emt 0:01:18]} Rad8 {[%emt 0:00:43]} 12. Bf3 {[%emt 0:00:52]} cxd4 {[%emt 0:03:07]} 13. exd4 {[%emt 0:00:26]} Ba3 {[%emt 0:02:29]} 14. Qc1 {[%emt 0:04:09]} Bxb2 {[%emt 0:00:14]} 15. Qxb2 {[%emt 0:00:04]} Na5 {[%emt 1:17:09]} 16. Rad1 {[%emt 0:11:40]} dxc4 {[%emt 0:00:00]} 17. Ndxc4 {[%emt 0:00:44]} Nxc4 {[%emt 0:00:00]} 18. bxc4 {[%emt 0:00:20]} Bxf3 {[%emt 0:00:00]} 19. Rxf3 {[%emt 0:00:17]} Qc7 {[%emt 0:00:00]} 20. Qe2 {[%emt 0:07:02]} Rd6 {[%emt 0:00:00]} 21. Rfd3 {[%emt 0:08:44]} Rfd8 {[%emt 0:00:00]} 22. Qf3 Nd7 {[%emt 0:03:30]} 23. Qh5 {[%emt 0:31:46]} Nxe5 {[%emt 0:00:00]} 24. fxe5 {[%emt 0:00:20]} R6d7 {[%emt 0:01:00]} 25. Rh3 {[%emt 0:13:03]} h6 {[%emt 0:00:00]} 26. Qg4 {[%emt 0:01:19]} Qxc4 {[%emt 0:00:00]} 27. Rg3 {[%emt 0:00:40]} g6 {[%emt 0:00:00]} 28. Qe4 {[%emt 0:01:25]} Rc8 {[%emt 0:00:00]} 29. Qf4 {[%emt 0:01:26]} Qc2 {[%emt 0:00:00]} 30. Rf1 {[%emt 0:01:36]} Rc3 {[%emt 0:00:00]} 31. Rg4 {[%emt 0:02:56]} h5 {[%emt 0:00:00]} 32. Rh4 {[%emt 0:01:34]} Rc4 {[%emt 0:00:00]} 33. Qg5 {[%emt 0:01:20]} Rcxd4 {[%emt 0:00:00]} 34. Rxd4 {[%emt 0:00:26]} Qc5 {[%emt 0:00:00]} 35. Rxf7 {[%emt 0:01:44]} Qxd4+ {[%emt 0:00:00]} 36. Rf2 {[%emt 0:04:29]} Kh7 {[%emt 0:06:00]} 37. h3 {[%emt 0:00:00]} Rf7 {[%emt 0:00:00]} 0-1

[Event "Chinese Championship-B Women 2024"]
[Site "Liaocheng"]
[Date "2024.04.24"]
[Round "8.7"]
[White "Xue, Shixuan"]
[Black "Ren, Xiaoyi"]
[Result "0-1"]
[WhiteElo "1790"]
[BlackElo "2075"]
[PlyCount "58"]
[EventDate "2024.04.24"]
[EventType "swiss"]
[EventCountry "CHN"]
[TimeControl "5400+30"]

1. e4 {[%emt 0:00:02]} e5 {[%emt 0:07:07]} 2. Nf3 {[%emt 0:00:13]} Nc6 {[%emt 0:00:29]} 3. d4 {[%emt 0:00:32]} exd4 {[%emt 0:00:16]} 4. Nxd4 {[%emt 0:00:06]} Nf6 {[%emt 0:00:07]} 5. Nxc6 {[%emt 0:02:42]} bxc6 {[%emt 0:00:05]} 6. e5 {[%emt 0:00:54]} Qe7 {[%emt 0:02:03]} 7. Qe2 {[%emt 0:00:35]} Nd5 {[%emt 0:00:10]} 8. c4 {[%emt 0:00:39]} Ba6 {[%emt 0:03:42]} 9. b3 {[%emt 0:01:55]} Qh4 {[%emt 0:03:49]} 10. Bb2 {[%emt 0:14:28]} Bb4+ {[%emt 0:01:15]} 11. Nd2 {[%emt 0:00:07]} O-O {[%emt 0:00:18]} 12. g3 {[%emt 0:04:32]} Bxd2+ {[%emt 0:01:49]} 13. Kxd2 {[%emt 0:00:06]} Qe7 {[%emt 0:00:04]} 14. Qh5 {[%emt 0:05:33]} Qb4+ {[%emt 1:16:16]} 15. Kd1 {[%emt 0:07:28]} Nb6 {[%emt 0:00:00]} 16. Kc2 {[%emt 0:07:31]} Qc5 {[%emt 0:00:00]} 17. Bd3 {[%emt 0:07:11]} Qxf2+ {[%emt 0:01:30]} 18. Kb1 {[%emt 0:07:26]} g6 {[%emt 0:00:00]} 19. Qh4 {[%emt 0:38:00]} Rab8 {[%emt 0:01:00]} 20. Qf4 {[%emt 0:00:00]} Qg2 {[%emt 0:00:00]} 21. Rf1 {[%emt 0:00:00]} Nd5 {[%emt 0:00:00]} 22. Qd4 {[%emt 0:00:00]} c5 {[%emt 0:00:00]} 23. Qxc5 {[%emt 0:00:00]} Nb4 {[%emt 0:00:00]} 24. Qe3 {[%emt 0:00:00]} Bxc4 {[%emt 0:00:00]} 25. Rf2 {[%emt 0:00:49]} Bxd3+ {[%emt 0:00:00]} 26. Kc1 {[%emt 0:00:09]} Qc6+ {[%emt 0:00:00]} 27. Kd2 {[%emt 0:00:40]} Ba6 {[%emt 0:00:00]} 28. Qc3 {[%emt 0:02:13]} Qd5+ {[%emt 0:00:00]} 29. Ke3 {[%emt 0:00:26]} Nxa2 {[%emt 0:00:00]} 0-1

[Event "Chinese Championship-B Women 2024"]
[Site "Liaocheng"]
[Date "2024.04.24"]
[Round "8.8"]
[White "Li, Peishan"]
[Black "Wang, Xiaoyan"]
[Result "0-1"]
[WhiteElo "1647"]
[BlackElo "1932"]
[PlyCount "80"]
[EventDate "2024.04.24"]
[EventType "swiss"]
[EventCountry "CHN"]
[TimeControl "5400+30"]

1. e4 {[%emt 0:00:03]} c5 {[%emt 0:00:04]} 2. Nf3 {[%emt 0:00:06]} d6 {[%emt 0:00:22]} 3. d4 {[%emt 0:00:07]} cxd4 {[%emt 0:00:03]} 4. Nxd4 {[%emt 0:00:05]} Nf6 {[%emt 0:00:03]} 5. Nc3 {[%emt 0:00:05]} a6 {[%emt 0:00:03]} 6. Be2 {[%emt 0:00:16]} e5 {[%emt 0:00:08]} 7. Nb3 {[%emt 0:00:04]} Be7 {[%emt 0:00:09]} 8. O-O {[%emt 0:00:49]} O-O {[%emt 0:00:03]} 9. Be3 {[%emt 0:00:21]} Be6 {[%emt 0:00:10]} 10. a4 {[%emt 0:02:49]} Nbd7 {[%emt 0:00:37]} 11. g4 {[%emt 0:04:30]} h6 {[%emt 0:05:09]} 12. f3 {[%emt 0:03:15]} Nb6 {[%emt 0:02:13]} 13. a5 {[%emt 0:04:06]} Nc4 {[%emt 0:09:01]} 14. Bxc4 {[%emt 0:00:37]} Bxc4 {[%emt 0:00:04]} 15. Rf2 {[%emt 0:05:47]} d5 {[%emt 0:10:12]} 16. Bb6 {[%emt 1:15:30]} Qd7 {[%emt 0:07:07]} 17. exd5 {[%emt 0:00:00]} Rac8 {[%emt 0:00:59]} 18. Rd2 {[%emt 0:00:00]} Bb4 {[%emt 0:01:05]} 19. d6 {[%emt 0:01:30]} Rc6 {[%emt 1:02:28]} 20. Ra4 {[%emt 0:00:00]} Bxc3 {[%emt 0:00:00]} 21. bxc3 {[%emt 0:00:00]} Rfc8 {[%emt 0:01:00]} 22. Rb4 {[%emt 0:00:00]} Bb5 {[%emt 0:00:00]} 23. c4 {[%emt 0:00:00]} Bxc4 {[%emt 0:00:00]} 24. Bc7 {[%emt 0:00:00]} Bb5 {[%emt 0:00:00]} 25. Qe1 {[%emt 0:00:00]} Rc3 {[%emt 0:00:00]} 26. Qxe5 {[%emt 0:00:00]} Rxf3 {[%emt 0:00:00]} 27. Rxb5 {[%emt 0:00:00]} axb5 {[%emt 0:00:00]} 28. Nd4 {[%emt 0:00:00]} Rc3 {[%emt 0:00:00]} 29. h3 {[%emt 0:05:00]} b4 {[%emt 0:00:00]} 30. Qb5 {[%emt 0:00:00]} R8xc7 {[%emt 0:00:00]} 31. dxc7 Qxc7 32. Rd3 {[%emt 0:00:33]} Rxd3 {[%emt 0:00:00]} 33. Qxd3 {[%emt 0:00:08]} Qxa5 {[%emt 0:00:00]} 34. Nf5 {[%emt 0:00:21]} Qc5+ {[%emt 0:00:00]} 35. Kf1 {[%emt 0:00:19]} Qc7 {[%emt 0:00:00]} 36. Qd4 {[%emt 0:02:09]} Qxc2 {[%emt 0:00:00]} 37. Qd8+ {[%emt 0:00:00]} Kh7 {[%emt 0:00:00]} 38. Qf8 {[%emt 0:00:00]} Qc1+ {[%emt 0:00:00]} 39. Kg2 {[%emt 0:00:00]} Qb2+ {[%emt 0:00:00]} 40. Kg1 {[%emt 0:00:26]} Ne4 {[%emt 0:00:00]} 0-1

[Event "Chinese Championship-B Women 2024"]
[Site "Liaocheng"]
[Date "2024.04.24"]
[Round "8.9"]
[White "Gao, Muziyan"]
[Black "Shi, Yige"]
[Result "1/2-1/2"]
[WhiteElo "1891"]
[BlackElo "1794"]
[PlyCount "32"]
[EventDate "2024.04.24"]
[EventType "swiss"]
[EventCountry "CHN"]
[TimeControl "5400+30"]

1. c4 {[%emt 0:00:30]} Nf6 {[%emt 0:00:09]} 2. Nf3 {[%emt 0:00:09]} e6 {[%emt 0:00:07]} 3. g3 {[%emt 0:00:33]} d5 {[%emt 0:00:05]} 4. Bg2 {[%emt 0:00:04]} dxc4 {[%emt 0:00:04]} 5. Qa4+ {[%emt 0:00:33]} Nbd7 {[%emt 0:00:05]} 6. Qxc4 {[%emt 0:00:38]} c5 {[%emt 0:00:12]} 7. Qc2 {[%emt 1:31:33]} b6 {[%emt 1:33:18]} 8. Nc3 {[%emt 0:00:00]} Bb7 {[%emt 0:00:00]} 9. O-O {[%emt 0:01:00]} Be7 {[%emt 0:01:00]} 10. Rd1 {[%emt 0:00:30]} O-O {[%emt 0:00:30]} 11. d4 {[%emt 0:00:00]} Rc8 12. dxc5 {[%emt 0:00:00]} Bxc5 13. Bg5 {[%emt 0:01:30]} Qe8 {[%emt 0:00:00]} 14. Qd3 {[%emt 0:00:00]} h6 {[%emt 0:00:00]} 15. Be3 {[%emt 0:00:00]} Qe7 16. Bg5 {[%emt 0:00:00]} Qe8 {[%emt 0:00:00]} 1/2-1/2